Workbook

Sheet % оплаты по ФЛ на 19.03.2015
A1: СВЕДЕНИЯ О НАЧИСЛЕННЫХ И ОПЛАЧЕННЫХ ДЕНЕЖНЫХ СРЕДСТВАХ СОБСТВЕННИКАМ ЖИЛЫХ ПОМЕЩЕНИЙ (БЕЗ УЧЕТА ПОМЕЩЕНИЙ, ОТНОСЯЩИХСЯ К СОБСТВЕНННОСТИ ЮРИДИЧЕСКИХ ЛИЦ) ПО ВЗНОСАМ НА КАПИТАЛЬНЫЙ РЕМОНТ В РАЗРЕЗЕ МУНИЦИПАЛЬНЫХ РАЙОНОВ ВОЛГОГРАДСКОЙ ОБЛАСТИ ЗА ПЕРИОД ОКТЯБРЬ 2014 ГОДА - ЯНВАРЬ 2015 ГОДА (ОПЛАТА УЧТЕНА ПО 19.03.2015 ГОДА)
A3: Подразделение | B3: Входящее сальдо | C3: Начислеиие с учтотом перерасчетов за период октябрь 2014 январь 2015 | D3: Оплата по 19.03.2015 (на момент закрытия начисления за февраль 2015) | E3: Процент оплаты | F3: Исходящее сальдо | G3: Начисленный объем, м² | H3: Площадь помещений по параметрам ЛС | I3: Количество открытых ЛС | J3: Процент оплаты на 18.02.2015 | K3: Изменение процента оплаты (гр.4-гр.9)
A4: 1 | C4: 2 | D4: 3 | E4: 4 | F4: 5 | G4: 6 | H4: 7 | I4: 8 | J4: 9 | K4: 10
A5: Муниципальные образования Волгоградской области | B5: 0 | C5: 505213763.5 | D5: 258555362.4 | E5: =D5/C5*100 -> 51.17741856 | F5: =C5-D5 -> 246658401.2 | G5: 26488725.96 | H5: 25172873.45 | I5: 520964 | J5: 43.63062187 | K5: =E5-J5 -> 7.546796681
A6: Муниципальные образования Волгоградской области без ГО Волгоград | B6: =B5-B199 -> 0 | C6: =C5-C199 -> 211883085.5 | D6: =D5-D199 -> 121964361.2 | E6: =D6/C6*100 -> 57.56210358 | F6: 89918724.36 | G6: =G5-G199 -> 11684893.07 | H6: 10681263.93 | I6: 232387 | J6: 51.04257016 | K6: =E6-J6 -> 6.519533419
A7: Алексеевский муниципальный район | B7: 0 | C7: 215293.24 | D7: 154762.14 | E7: 71.88434714 | F7: 60531.1 | G7: 10799.43 | H7: 10627.43 | I7: 251 | J7: 64.05180514 | K7: 7.832541995
A8: Алексеевское | B8: 0 | C8: 85611.08 | D8: 59843.93 | E8: =D8/C8*100 -> 69.9020851 | F8: 25767.15 | G8: 4229.8 | H8: 4229.8 | I8: 104 | J8: 55.85212076 | K8: =E8-J8 -> 14.04996435
A9: Краснооктябрьское | B9: 0 | C9: 26393 | D9: 14399.27 | E9: =D9/C9*100 -> 54.55715531 | F9: 11993.73 | G9: 1466.4 | H9: 1294.4 | I9: 29 | J9: 34.76771668 | K9: =E9-J9 -> 19.78943863
A10: Усть-Бузулукское | B10: 0 | C10: 90124.48 | D10: 77605.9 | E10: 86.10967852 | F10: 12518.58 | G10: 4452.8 | H10: 4452.8 | I10: 104 | J10: 85.63838223 | K10: 0.471296293
A11: Шарашенское | B11: 0 | C11: 13164.68 | D11: 2913.04 | E11: 22.12769319 | F11: 10251.64 | G11: 650.43 | H11: 650.43 | I11: 14 | J11: 29.50359092 | K11: -7.37589773
A12: Быковский муниципальный район | B12: 0 | C12: 839731.76 | D12: 350468.92 | E12: =D12/C12*100 -> 41.73581811 | F12: 489262.84 | G12: 42140.78 | H12: 41470.38 | I12: 936 | J12: 37.93136016 | K12: =E12-J12 -> 3.804457952
A13: Быковское | B13: 0 | C13: 556578.56 | D13: 278016.43 | E13: 49.95097727 | F13: 278562.13 | G13: 28151 | H13: 27480.6 | I13: 640 | J13: 45.08355352 | K13: =E13-J13 -> 4.86742375
A14: Верхнебалыклейское | B14: 0 | C14: 15177.96 | D14: 430.1 | E14: 2.833714149 | F14: 14747.86 | G14: 749.9 | H14: 749.9 | I14: 15 | J14: 3.778285532 | K14: -0.9445713829
A15: Зеленовское | B15: 0 | C15: 83178.28 | D15: 32308.05 | E15: 38.84193085 | F15: 50870.23 | G15: 4109.6 | H15: 4109.6 | I15: 86 | J15: 37.92496471 | K15: 0.9169661439
A16: Кисловское | B16: 0 | C16: 99527.68 | D16: 27097.26 | E16: 27.22585315 | F16: 72430.42 | G16: 4917.37 | H16: 4917.37 | I16: 113 | J16: 27.19010608 | K16: 0.03574707234
A17: Красносельцевское | B17: 0 | C17: 33890 | D17: 7816.18 | E17: 23.06338153 | F17: 26073.82 | G17: 1674.41 | H17: 1674.41 | I17: 37 | J17: 15.5896528 | K17: 7.47372873
A18: Новоникольское | B18: 0 | C18: 27006.28 | D18: 761.53 | E18: 2.819825611 | F18: 26244.75 | G18: 1334.3 | H18: 1334.3 | I18: 22 | J18: 0 | K18: 2.819825611
A19: Приморское | B19: 0 | C19: 24373 | D19: 4039.37 | E19: 16.57313421 | F19: 20333.63 | G19: 1204.2 | H19: 1204.2 | I19: 23 | J19: 12.95739821 | K19: 3.615735992
A20: Городищенский муниципальный район | B20: 0 | C20: 7999215.26 | D20: 3387764.06 | E20: =D20/C20*100 -> 42.35120509 | F20: 4611451.2 | G20: 417662.59 | H20: 397918.79 | I20: 8393 | J20: 36.47531246 | K20: =E20-J20 -> 5.875892629
A21: Городищенское | B21: 0 | C21: 3759704.92 | D21: 1855800.08 | E21: 49.36025884 | F21: 1903904.84 | G21: 186186.65 | H21: 185628.65 | I21: 3966 | J21: 43.17061563 | K21: =E21-J21 -> 6.189643203
A22: Ерзовское | B22: 0 | C22: 1127540.36 | D22: 443098.73 | E22: 39.29781547 | F22: 684441.63 | G22: 59806.04 | H22: 56368.44 | I22: 1065 | J22: 32.64736941 | K22: 6.650446058
A23: Каменское | B23: 0 | C23: 88616.76 | D23: 21449.49 | E23: 24.20477797 | F23: 67167.27 | G23: 4378.3 | H23: 4378.3 | I23: 84 | J23: 22.1139658 | K23: 2.090812167
A24: Карповское | B24: 0 | C24: 38086.2 | D24: 16909.6 | E24: 44.39823348 | F24: 21176.6 | G24: 1998.53 | H24: 1864.53 | I24: 37 | J24: 33.63580509 | K24: 10.76242839
A25: Котлубанское | B25: 0 | C25: 324995.48 | D25: 54242.28 | E25: 16.69016443 | F25: 270753.2 | G25: 23166.6 | H25: 17444.2 | I25: 383 | J25: 9.547742947 | K25: 7.142421482
A26: Краснопахаревское | B26: 0 | C26: 7970.48 | D26: 900 | E26: 11.29166625 | F26: 7070.48 | G26: 393.8 | H26: 393.8 | I26: 8 | J26: 0 | K26: 11.29166625
A27: Кузьмичевское | B27: 0 | C27: 338992.08 | D27: 173611.95 | E27: 51.21416111 | F27: 165380.13 | G27: 16748.6 | H27: 16748.6 | I27: 348 | J27: 45.69786999 | K27: 5.516291118
A28: Новожизненское | B28: 0 | C28: 381584.48 | D28: 248700.69 | E28: 65.17578755 | F28: 132883.79 | G28: 19299.1 | H28: 18827.1 | I28: 412 | J28: 59.73742306 | K28: 5.438364483
A29: Новонадеждинское | B29: 0 | C29: 54257.44 | D29: 15954.68 | E29: 29.40551563 | F29: 38302.76 | G29: 2680.7 | H29: 2680.7 | I29: 56 | J29: 22.06888739 | K29: 7.336628242
A30: Новорогачинское | B30: 0 | C30: 1436377.96 | D30: 475565.71 | E30: 33.10867496 | F30: 960812.25 | G30: 78407.54 | H30: 71787.74 | I30: 1602 | J30: 27.02548454 | K30: 6.08319042
A31: Паньшинское | B31: 0 | C31: 24265.72 | D31: 4279.74 | E31: 17.63697924 | F31: 19985.98 | G31: 3730.5 | H31: 1198.9 | I31: 21 | J31: 12.5447751 | K31: 5.092204146
A32: Россошинское | B32: 0 | C32: 234813.64 | D32: 69135.39 | E32: 29.44266355 | F32: 165678.25 | G32: 11601.45 | H32: 11601.45 | I32: 239 | J32: 28.1205188 | K32: 1.322144756
A33: Самофаловское | B33: 0 | C33: 151522.58 | D33: 5643.9 | E33: 3.724791381 | F33: 145878.68 | G33: 7758.5 | H33: 7490.1 | I33: 140 | J33: 4.034231341 | K33: -0.3094399605
A34: Царицынское | B34: 0 | C34: 30487.16 | D34: 2471.82 | E34: 8.107741095 | F34: 28015.34 | G34: 1506.28 | H34: 1506.28 | I34: 32 | J34: 7.736502843 | K34: 0.3712382524
A35: Даниловский муниципальный район | B35: 0 | C35: 756556.76 | D35: 391001.73 | E35: =D35/C35*100 -> 51.68174428 | F35: 365555.03 | G35: 82639.85 | H35: 36545.53 | I35: 811 | J35: 48.3798584 | K35: =E35-J35 -> 3.301885878
A36: Атамановское | B36: 0 | C36: 15993.64 | D36: 3809.66 | E36: 23.81984339 | F36: 12183.98 | G36: 790.2 | H36: 790.2 | I36: 16 | J36: 25.22561051 | K36: =E36-J36 -> -1.405767126
A37: Белопрудское | B37: 0 | C37: 47786.64 | D37: 17126.07 | E37: 35.83861514 | F37: 30660.57 | G37: 2361 | H37: 2361 | I37: 53 | J37: 34.43447792 | K37: 1.404137223
A38: Миусовское | B38: 0 | C38: 631.48 | D38: 631.48 | E38: 100 | F38: 0 | G38: 31.2 | H38: 31.2 | I38: 1 | J38: 0 | K38: 100
A39: Островское | B39: 0 | C39: 83844.16 | D39: 42768.55 | E39: 51.00957538 | F39: 41075.61 | G39: 4613.9 | H39: 4144.7 | I39: 93 | J39: 49.75492628 | K39: 1.254649101
A40: Профсоюзнинское | B40: 0 | C40: 18979 | D40: 11947.05 | E40: 62.9487855 | F40: 7031.95 | G40: 937.7 | H40: 937.7 | I40: 20 | J40: 66.28245254 | K40: -3.333667035
A41: рабочий поселок Даниловка | B41: 0 | C41: 589321.84 | D41: 314718.92 | E41: 53.40357316 | F41: 274602.92 | G41: 73905.85 | H41: 28280.73 | I41: 628 | J41: 49.41636182 | K41: 3.987211349
A42: Дубовский муниципальный район | B42: 0 | C42: 1429806.64 | D42: 842694.77 | E42: =D42/C42*100 -> 58.93767356 | F42: 587111.87 | G42: 70793.36 | H42: 70642.96 | I42: 1616 | J42: 55.66850482 | K42: =E42-J42 -> 3.269168734
A43: Горнобалыклейское | B43: 0 | C43: 55305.76 | D43: 13357.89 | E43: 24.15280072 | F43: 41947.87 | G43: 2732.5 | H43: 2732.5 | I43: 63 | J43: 26.39587631 | K43: =E43-J43 -> -2.243075586
A44: город Дубовка | B44: 0 | C44: 1374500.88 | D44: 829336.88 | E44: 60.33731168 | F44: 545164 | G44: 68060.86 | H44: 67910.46 | I44: 1553 | J44: 56.8484315 | K44: 3.488880179
A45: Еланский муниципальный район | B45: 0 | C45: 729804.12 | D45: 526693.85 | E45: =D45/C45*100 -> 72.16920754 | F45: 203110.27 | G45: 36057.53 | H45: 36057.53 | I45: 799 | J45: 69.75583165 | K45: =E45-J45 -> 2.413375889
A46: Еланское | B46: 0 | C46: 729804.12 | D46: 526693.85 | E46: 72.16920754 | F46: 203110.27 | G46: 36057.53 | H46: 36057.53 | I46: 799 | J46: 69.75583165 | K46: =E46-J46 -> 2.413375889
A47: Жирновский муниципальный район | B47: 0 | C47: 6310078.04 | D47: 3491137.86 | E47: =D47/C47*100 -> 55.32638167 | F47: 2818940.18 | G47: 312836.8 | H47: 310146 | I47: 6766 | J47: 47.73549693 | K47: =E47-J47 -> 7.59088474
A48: Александровское | B48: 0 | C48: 119545.44 | D48: 64001.01 | E48: 53.53697305 | F48: 55544.43 | G48: 6084 | H48: 5905.6 | I48: 129 | J48: 50.56477649 | K48: =E48-J48 -> 2.972196562
A49: Алешниковское | B49: 0 | C49: 27415.12 | D49: 0 | E49: 0 | F49: 27415.12 | G49: 1354.5 | H49: 1354.5 | I49: 27 | J49: 0 | K49: 0
A50: Жирновское | B50: 0 | C50: 4980554.76 | D50: 3000417.28 | E50: 60.24263209 | F50: 1980137.48 | G50: 244253.08 | H50: 244049.48 | I50: 5272 | J50: 52.12088019 | K50: 8.121751899
A51: Кленовское | B51: 0 | C51: 135397.6 | D51: 26934.83 | E51: 19.89313695 | F51: 108462.77 | G51: 6689.6 | H51: 6689.6 | I51: 141 | J51: 18.94467708 | K51: 0.9484598739
A52: Красноярское | B52: 0 | C52: 264381.76 | D52: 113975.03 | E52: 43.11002015 | F52: 150406.73 | G52: 13308.75 | H52: 13099.95 | I52: 352 | J52: 38.30483111 | K52: 4.805189032
A53: Линевское | B53: 0 | C53: 414504.32 | D53: 140746.12 | E53: 33.95528423 | F53: 273758.2 | G53: 20673.96 | H53: 20475.56 | I53: 435 | J53: 27.71987582 | K53: 6.235408414
A54: Медведицкое | B54: 0 | C54: 52121.84 | D54: 1267.52 | E54: 2.431840472 | F54: 50854.32 | G54: 4503.2 | H54: 2960.8 | I54: 60 | J54: 3.242453963 | K54: -0.8106134907
A55: Медведицкое | B55: 0 | C55: 158229.26 | D55: 118173.29 | E55: 74.68485285 | F55: 40055.97 | G55: 13488.31 | H55: 13129.11 | I55: 301 | J55: 39.28296484 | K55: 35.40188801
A56: Новинское | B56: 0 | C56: 50223.56 | D56: 25622.78 | E56: 51.01745077 | F56: 24600.78 | G56: 2481.4 | H56: 2481.4 | I56: 49 | J56: 40.83834297 | K56: 10.1791078
A57: Иловлинский муниципальный район | B57: 0 | C57: 2729497.14 | D57: 1422432.06 | E57: =D57/C57*100 -> 52.11333762 | F57: 1307065.08 | G57: 139370.719 | H57: 135575.279 | I57: 3013 | J57: 44.56749326 | K57: =E57-J57 -> 7.545844364
A58: Авиловское | B58: 0 | C58: 25514.64 | D58: 7282.94 | E58: 28.54416131 | F58: 18231.7 | G58: 1260.6 | H58: 1260.6 | I58: 37 | J58: 22.10840521 | K58: =E58-J58 -> 6.435756099
A59: Иловлинское | B59: 0 | C59: 1920170.3 | D59: 1143804.44 | E59: 59.56786437 | F59: 776365.86 | G59: 98284.49 | H59: 95571.69 | I59: 2026 | J59: 50.85731061 | K59: 8.710553756
A60: Качалинское | B60: 0 | C60: 346875.84 | D60: 153672.65 | E60: 44.30191794 | F60: 193203.19 | G60: 17310.12 | H60: 17172.52 | I60: 379 | J60: 36.7530101 | K60: 7.548907842
A61: Кондрашовское | B61: 0 | C61: 118458.64 | D61: 22163.29 | E61: 18.70972856 | F61: 96295.35 | G61: 5852.7 | H61: 5852.7 | I61: 96 | J61: 18.38470091 | K61: 0.3250276496
A62: Краснодонское | B62: 0 | C62: 11457.76 | D62: 7005.58 | E62: 61.14266663 | F62: 4452.18 | G62: 566.09 | H62: 566.09 | I62: 14 | J62: 52.99453529 | K62: 8.148131339
A63: Логовское | B63: 0 | C63: 132071.96 | D63: 72230.11 | E63: 54.68996599 | F63: 59841.85 | G63: 7261.029 | H63: 6519.989 | I63: 246 | J63: 51.37043261 | K63: 3.319533377
A64: Медведевское | B64: 0 | C64: 130030.48 | D64: 12231.13 | E64: 9.40635611 | F64: 117799.35 | G64: 6616.44 | H64: 6412.44 | I64: 167 | J64: 7.033602173 | K64: 2.372753937
A65: Сиротинское | B65: 0 | C65: 37076.6 | D65: 3143.28 | E65: 8.477800014 | F65: 33933.32 | G65: 1831.85 | H65: 1831.85 | I65: 40 | J65: 5.784708774 | K65: 2.69309124
A66: Трехостровское | B66: 0 | C66: 7840.92 | D66: 898.64 | E66: 11.4609 | F66: 6942.28 | G66: 387.4 | H66: 387.4 | I66: 8 | J66: 0 | K66: 11.4609
A67: Калачевский муниципальный район | B67: 0 | C67: 5163088.52 | D67: 2563026.89 | E67: =D67/C67*100 -> 49.64135091 | F67: 2600061.63 | G67: 255183.77 | H67: 254578.17 | I67: 5639 | J67: 44.46606851 | K67: =E67-J67 -> 5.175282403
A68: Береславское | B68: 0 | C68: 1100622.28 | D68: 543805.17 | E68: 49.40888258 | F68: 556817.11 | G68: 54378.59 | H68: 54378.59 | I68: 1167 | J68: 46.97361569 | K68: =E68-J68 -> 2.435266893
A69: Бузиновское | B69: 0 | C69: 29621.08 | D69: 18755.31 | E69: 63.3174415 | F69: =C69-D69 -> 10865.77 | G69: 1463.5 | H69: 1463.5 | I69: 29 | J69: 60.29161214 | K69: 3.025829353
A70: Голубинское | B70: 0 | C70: 20092.28 | D70: 5099.47 | E70: 25.38024555 | F70: 14992.81 | G70: 992.7 | H70: 992.7 | I70: 23 | J70: 26.20130717 | K70: -0.8210616217
A71: Зарянское | B71: 0 | C71: 76614.16 | D71: 40687.06 | E71: 53.10644925 | F71: 35927.1 | G71: 3535.5 | H71: 3535.5 | I71: 80 | J71: 49.3925927 | K71: 3.713856551
A72: Ильевское | B72: 0 | C72: 300002.16 | D72: 145350.45 | E72: 48.44980116 | F72: 154651.71 | G72: 14798.86 | H72: 14798.86 | I72: 379 | J72: 41.978908 | K72: 6.470893166
A73: Калачевское | B73: 0 | C73: 2726244.88 | D73: 1354352.6 | E73: =D73/C73*100 -> 49.67831797 | F73: 1371892.28 | G73: 134650.42 | H73: 134458.82 | I73: 2973 | J73: 42.71683337 | K73: 6.9614846
A74: Крепинское | B74: 0 | C74: 85048.64 | D74: 8025.17 | E74: 9.435976872 | F74: 77023.47 | G74: 4202 | H74: 4202 | I74: 94 | J74: 10.11341275 | K74: -0.6774358767
A75: Логовское | B75: 0 | C75: 192901.72 | D75: 215060.94 | E75: 111.4873107 | F75: -22159.22 | G75: 12803.3 | H75: 12553.7 | I75: 280 | J75: 94.2098154 | K75: 17.27749534
A76: Ляпичевское | B76: 0 | C76: 204229.72 | D76: 86207.22 | E76: 42.21090838 | F76: 118022.5 | G76: 10090.4 | H76: 10090.4 | I76: 215 | J76: 35.87206327 | K76: 6.338845118
A77: Мариновское | B77: 0 | C77: 36680.96 | D77: 20214.89 | E77: 55.11003529 | F77: 16466.07 | G77: 1812.3 | H77: 1812.3 | I77: 44 | J77: 48.3473715 | K77: 6.762663791
A78: Советское | B78: 0 | C78: 329829.28 | D78: 125468.61 | E78: 38.04047051 | F78: 204360.67 | G78: 16456.2 | H78: 16291.8 | I78: 355 | J78: 34.43999878 | K78: 3.600471735
A79: Камышинский муниципальный район | B79: 0 | C79: 3407525.72 | D79: 1681860.56 | E79: =D79/C79*100 -> 49.35723743 | F79: 1725665.16 | G79: 170661.68 | H79: 168324.48 | I79: 3700 | J79: 42.88615101 | K79: =E79-J79 -> 6.471086416
A80: Антиповское | B80: 0 | C80: 255762.6 | D80: 40615.17 | E80: =D80/C80*100 -> 15.88002703 | F80: 215147.43 | G80: 12636.5 | H80: 12636.5 | I80: 277 | J80: 14.51395517 | K80: =E80-J80 -> 1.366071851
A81: Белогорское | B81: 0 | C81: 45768.48 | D81: 20813.77 | E81: 45.47620983 | F81: 24954.71 | G81: 2261.3 | H81: 2261.3 | I81: 49 | J81: 37.76893326 | K81: 7.707276565
A82: Верхнедобринское | B82: 0 | C82: 23292.12 | D82: 10394.71 | E82: 44.6275822 | F82: 12897.41 | G82: 1150.8 | H82: 1150.8 | I82: 27 | J82: 43.33213693 | K82: 1.295445269
A83: Воднобуерачное | B83: 0 | C83: 13285.48 | D83: 7511.02 | E83: 56.53555611 | F83: 5774.46 | G83: 656.4 | H83: 656.4 | I83: 16 | J83: 49.20770646 | K83: 7.327849652
A84: Мичуринское | B84: 0 | C84: 540733.4 | D84: 193475.13 | E84: 35.78013306 | F84: 347258.27 | G84: 28841.6 | H84: 26690 | I84: 564 | J84: 27.34707097 | K84: 8.433062084
A85: Петров Вал | B85: 0 | C85: 2293128.28 | D85: 1342540.55 | E85: 58.54624714 | F85: 950587.73 | G85: 113476.98 | H85: 113291.38 | I85: 2506 | J85: 51.73872668 | K85: 6.807520459
A86: Семеновское | B86: 0 | C86: 45888.08 | D86: 17668.44 | E86: 38.50333246 | F86: 28219.64 | G86: 2267.2 | H86: 2267.2 | I86: 50 | J86: 35.70917182 | K86: 2.794160633
A87: Терновское | B87: 0 | C87: 90997.36 | D87: 20910.58 | E87: 22.97932599 | F87: 70086.78 | G87: 4495.9 | H87: 4495.9 | I87: 97 | J87: 19.07995541 | K87: 3.899370582
A88: Уметовское | B88: 0 | C88: 82218.84 | D88: 27328.55 | E88: 33.23879296 | F88: 54890.29 | G88: 4062.2 | H88: 4062.2 | I88: 97 | J88: 24.84037316 | K88: 8.398419794
A89: Усть-Грязнухинское | B89: 0 | C89: 16451.08 | D89: 602.64 | E89: 3.663224542 | F89: 15848.44 | G89: 812.8 | H89: 812.8 | I89: 17 | J89: 4.884299389 | K89: -1.221074847
A90: Киквидзенский муниципальный район | B90: 0 | C90: 235542.68 | D90: 97149.45 | E90: =D90/C90*100 -> 41.2449455 | F90: 138393.23 | G90: 11637.49 | H90: 11637.49 | I90: 264 | J90: 37.49941702 | K90: =E90-J90 -> 3.745528484
A91: Гришинское | B91: 0 | C91: 2625.08 | D91: 1095.47 | E91: =D91/C91*100 -> 41.73091868 | F91: 1529.61 | G91: 129.7 | H91: 129.7 | I91: 3 | J91: 44.48727912 | K91: =E91-J91 -> -2.756360441
A92: Преображенское | B92: 0 | C92: 232917.6 | D92: 96053.98 | E92: 41.23946838 | F92: 136863.62 | G92: 11507.79 | H92: 11507.79 | I92: 261 | J92: 37.42037926 | K92: 3.819089122
A93: Клетский муниципальный район | B93: 0 | C93: 608248.52 | D93: 285257.63 | E93: =D93/C93*100 -> 46.89820371 | F93: 322990.89 | G93: 31401.2 | H93: 30067.6 | I93: 691 | J93: 44.59943512 | K93: =E93-J93 -> 2.298768596
A94: Калмыковское | B94: 0 | C94: 25532.88 | D94: 0 | E94: =D94/C94*100 -> 0 | F94: 25532.88 | G94: 1261.5 | H94: 1261.5 | I94: 32 | J94: 0 | K94: =E94-J94 -> 0
A95: Клетское | B95: 0 | C95: 518186.64 | D95: 274657.8 | E95: 53.00364363 | F95: 243528.84 | G95: 26951.5 | H95: 25617.9 | I95: 580 | J95: 50.33315995 | K95: 2.670483682
A96: Кременское | B96: 0 | C96: 6578 | D96: 0 | E96: 0 | F96: 6578 | G96: 325 | H96: 325 | I96: 11 | J96: 0 | K96: 0
A97: Манойлинское | B97: 0 | C97: 40461.76 | D97: 10599.83 | E97: 26.19715504 | F97: 29861.93 | G97: 1999.1 | H97: 1999.1 | I97: 45 | J97: 25.95507462 | K97: 0.2420804236
A98: Перекопское | B98: 0 | C98: 17489.24 | D98: 0 | E98: 0 | F98: 17489.24 | G98: 864.1 | H98: 864.1 | I98: 23 | J98: 0 | K98: 0
A99: Котельниковский муниципальный район | B99: 0 | C99: 2199806.4 | D99: 1392119.48 | E99: =D99/C99*100 -> 63.28372715 | F99: 807686.92 | G99: 108686.08 | H99: 108686.08 | I99: 2354 | J99: 52.63821762 | K99: =E99-J99 -> 10.64550953
A100: Котельниковское | B100: 0 | C100: 2186879.2 | D100: 1391687.36 | E100: =D100/C100*100 -> 63.63805372 | F100: 795191.84 | G100: 108047.38 | H100: 108047.38 | I100: 2341 | J100: 52.92303221 | K100: =E100-J100 -> 10.71502151
A101: Чилековское | B101: 0 | C101: 12927.2 | D101: 432.12 | E101: 3.342719228 | F101: 12495.08 | G101: 638.7 | H101: 638.7 | I101: 13 | J101: 4.45695897 | K101: -1.114239743
A102: Котовский муниципальный район | B102: 0 | C102: 5842193.46 | D102: 4007023.67 | E102: =D102/C102*100 -> 68.587658 | F102: 1835169.79 | G102: 289386.26 | H102: 288672.26 | I102: 6292 | J102: 64.01380094 | K102: =E102-J102 -> 4.573857057
A103: Купцовское | B103: 0 | C103: 125963.64 | D103: 25549.1 | E103: =D103/C103*100 -> 20.28291656 | F103: 100414.54 | G103: 6223.5 | H103: 6223.5 | I103: 136 | J103: 19.78717033 | K103: =E103-J103 -> 0.4957462328
A104: Лапшинское | B104: 0 | C104: 4260.56 | D104: 2675.24 | E104: 62.79080684 | F104: 1585.32 | G104: 210.5 | H104: 210.5 | I104: 7 | J104: 22.3278943 | K104: 40.46291254
A105: Попковское | B105: 0 | C105: 28815.72 | D105: 4666.76 | E105: 16.1951879 | F105: 24148.96 | G105: 1423.7 | H105: 1423.7 | I105: 31 | J105: 11.8900602 | K105: 4.305127701
A106: город Котово | B106: 0 | C106: 5683153.54 | D106: 3974132.57 | E106: 69.92829847 | F106: 1709020.97 | G106: 281528.56 | H106: 280814.56 | I106: 6118 | J106: 65.33187944 | K106: 4.596419035
A107: Кумылженский муниципальный район | B107: 0 | C107: 323353.64 | D107: 75071.08 | E107: =D107/C107*100 -> 23.21640171 | F107: 248282.56 | G107: 15975.95 | H107: 15975.95 | I107: 347 | J107: 19.37882311 | K107: =E107-J107 -> 3.837578595
A108: Кумылженское | B108: 0 | C108: 280991.12 | D108: 49223.68 | E108: =D108/C108*100 -> 17.51787743 | F108: 231767.44 | G108: 13882.95 | H108: 13882.95 | I108: 301 | J108: 13.89988841 | K108: =E108-J108 -> 3.617989019
A109: Слащевское | B109: 0 | C109: 42362.52 | D109: 25847.4 | E109: 61.01478382 | F109: 16515.12 | G109: 2093 | H109: 2093 | I109: 46 | J109: 55.7795586 | K109: 5.235225226
A110: Ленинский муниципальный район | B110: 0 | C110: 1514924.96 | D110: 934454.65 | E110: =D110/C110*100 -> 61.68323017 | F110: 580470.31 | G110: 76897.4771 | H110: 74927.39 | I110: 1656 | J110: 57.37305252 | K110: =E110-J110 -> 4.310177655
A111: Заплавненское | B111: 0 | C111: 94253.48 | D111: 42232.13 | E111: =D111/C111*100 -> 44.80697158 | F111: 52021.35 | G111: 5857.287097 | H111: 4744.8 | I111: 121 | J111: 33.46436882 | K111: =E111-J111 -> 11.34260277
A112: Колобовское | B112: 0 | C112: 36367.16 | D112: 0 | E112: 0 | F112: 36367.16 | G112: 1796.8 | H112: 1796.8 | I112: 37 | J112: 0 | K112: 0
A113: город Ленинск | B113: 0 | C113: 1384304.32 | D113: 892222.52 | E113: 64.45277293 | F113: 492081.8 | G113: 69243.39 | H113: 68385.79 | I113: 1498 | J113: 60.51353304 | K113: 3.939239885
A114: Нехаевский муниципальный район | B114: 0 | C114: 266279.56 | D114: 176545.72 | E114: =D114/C114*100 -> 66.30089069 | F114: 89733.84 | G114: 13972.81 | H114: 13170.81 | I114: 289 | J114: 56.9993519 | K114: =E114-J114 -> 9.301538791
A115: Динамовское | B115: 0 | C115: 64786.12 | D115: 40840.23 | E115: =D115/C115*100 -> 63.038549 | F115: 23945.89 | G115: 3200.9 | H115: 3200.9 | I115: 74 | J115: 41.15335005 | K115: =E115-J115 -> 21.88519894
A116: Нехаевское | B116: 0 | C116: 175454.76 | D116: 128745.97 | E116: 73.3784424 | F116: 46708.79 | G116: 9123.71 | H116: 8717.31 | I116: 192 | J116: 67.6898212 | K116: 5.688621196
A117: Упорниковское | B117: 0 | C117: 26038.68 | D117: 6959.52 | E117: 26.72762214 | F117: 19079.16 | G117: 1648.2 | H117: 1252.6 | I117: 23 | J117: 24.26226419 | K117: 2.465357947
A118: Николаевский муниципальный район | B118: 0 | C118: 1869406.84 | D118: 945700.82 | E118: =D118/C118*100 -> 50.58828286 | F118: 923706.02 | G118: 94664.69 | H118: 92349.59 | I118: 1957 | J118: 45.38423905 | K118: 5.204043813
A119: Барановское | B119: 0 | C119: 25959.68 | D119: 195.82 | E119: =D119/C119*100 -> 0.754323628 | F119: 25763.86 | G119: 1243.4 | H119: 1243.4 | I119: 31 | J119: 1.005764837 | K119: -0.2514412093
A120: Ильичевское | B120: 0 | C120: 17459.16 | D120: 0 | E120: 0 | F120: 17459.16 | G120: 862.6 | H120: 862.6 | I120: 20 | J120: 0 | K120: 0
A121: Очкуровское | B121: 0 | C121: 120426.16 | D121: 6255.71 | E121: 5.194643755 | F121: 114170.45 | G121: 6966 | H121: 5924.8 | I121: 128 | J121: 3.21290705 | K121: 1.981736705
A122: Солодушинское | B122: 0 | C122: 16914.56 | D122: 10194.5 | E122: 60.2705598 | F122: 6720.06 | G122: 835.7 | H122: 835.7 | I122: 18 | J122: 49.97414456 | K122: 10.29641524
A123: город Николаевск | B123: 0 | C123: 1688647.28 | D123: 929054.79 | E123: 55.01769381 | F123: 759592.49 | G123: 84756.99 | H123: 83483.09 | I123: 1760 | J123: 49.53217023 | K123: 5.485523575
A124: Новоаннинский муниципальный район | B124: 0 | C124: 780681.44 | D124: 616004.42 | E124: =D124/C124*100 -> 78.90599013 | F124: 164677.02 | G124: 38571.23 | H124: 38571.23 | I124: 837 | J124: 71.84191117 | K124: =E124-J124 -> 7.064078958
A125: Деминское | B125: 0 | C125: 6847.2 | D125: 3996.39 | E125: =D125/C125*100 -> 58.36531721 | F125: 2850.81 | G125: 338.3 | H125: 338.3 | I125: 7 | J125: 44.5858161 | K125: =E125-J125 -> 13.77950111
A126: город Новоаннинский | B126: 0 | C126: 773834.24 | D126: 612008.03 | E126: 79.08774236 | F126: 161826.21 | G126: 38232.93 | H126: 38232.93 | I126: 830 | J126: 72.08308418 | K126: 7.004658172
A127: Новониколаевский муниципальный район | B127: 0 | C127: 1023698 | D127: 766868.39 | E127: =D127/C127*100 -> 74.91158428 | F127: 256829.61 | G127: 59690.38 | H127: 52327.78 | I127: 1241 | J127: 68.27972941 | K127: =E127-J127 -> 6.631854869
A128: Алексиковское | B128: 0 | C128: 17359.92 | D128: 9563.44 | E128: =D128/C128*100 -> 55.08919396 | F128: 7796.48 | G128: 857.7 | H128: 857.7 | I128: 18 | J128: 0 | K128: =E128-J128 -> 55.08919396
A129: Комсомольское | B129: 0 | C129: 35727.6 | D129: 23625.54 | E129: 66.12685991 | F129: 12102.06 | G129: 10470.2 | H129: 3506.2 | I129: 74 | J129: 55.73868195 | K129: 10.38817795
A130: Новониколаевское | B130: 0 | C130: 876848.68 | D130: 697863.19 | E130: 79.58764219 | F130: 178985.49 | G130: 43729.98 | H130: 43331.38 | I130: 1053 | J130: 72.36772251 | K130: 7.219919684
A131: Серпо-Молотское | B131: 0 | C131: 93761.8 | D131: 35816.22 | E131: 38.19916 | F131: 57945.58 | G131: 4632.5 | H131: 4632.5 | I131: 96 | J131: 34.8012659 | K131: 3.397894096
A132: Октябрьский муниципальный район | B132: 0 | C132: 545204.84 | D132: 399571.97 | E132: =D132/C132*100 -> 73.28841211 | F132: 145632.87 | G132: 27227 | H132: 26995 | I132: 614 | J132: 68.76873898 | K132: =E132-J132 -> 4.519673132
A133: Шебалиновское | B133: 0 | C133: 7000.96 | D133: 1101.04 | E133: =D133/C133*100 -> 15.72698601 | F133: =C133-D133 -> 5899.92 | G133: 345.9 | H133: 345.9 | I133: 7 | J133: 15.72698601 | K133: =E133-J133 -> 0
A134: рабочий поселок Октябрьский | B134: 0 | C134: 538203.88 | D134: 398470.93 | E134: 74.03717156 | F134: 139732.95 | G134: 26881.1 | H134: 26649.1 | I134: 607 | J134: 69.45870649 | K134: 4.578465073
A135: Ольховский муниципальный район | B135: 0 | C135: 362110.21 | D135: 157687.19 | E135: =D135/C135*100 -> 43.54673954 | F135: 204423.02 | G135: 17906.94 | H135: 17906.94 | I135: 389 | J135: 40.6633162 | K135: =E135-J135 -> 2.883423337
A136: Зензеватское | B136: 0 | C136: 44791.09 | D136: 14177.67 | E136: =D136/C136*100 -> 31.65288007 | F136: 30613.42 | G136: 2229.1 | H136: 2229.1 | I136: 51 | J136: 32.62786149 | K136: =E136-J136 -> -0.9749814172
A137: Киреевское | B137: 0 | C137: 34962.56 | D137: 8366.18 | E137: 23.92896859 | F137: 26596.38 | G137: 1727.4 | H137: 1727.4 | I137: 49 | J137: 15.61907894 | K137: 8.309889648
A138: Ольховское | B138: 0 | C138: 282356.56 | D138: 135143.34 | E138: 47.86265281 | F138: 147213.22 | G138: 13950.44 | H138: 13950.44 | I138: 289 | J138: 44.95454246 | K138: 2.908110349
A139: Палласовский муниципальный район | B139: 0 | C139: 2002368.1 | D139: 1079258.93 | E139: =D139/C139*100 -> 53.89912724 | F139: 923109.17 | G139: 101840.39 | H139: 99075.39 | I139: 2149 | J139: 50.87885913 | K139: =E139-J139 -> 3.020268108
A140: Заволжское | B140: 0 | C140: 166123.76 | D140: 116671.21 | E140: =D140/C140*100 -> 70.2315009 | F140: 49452.55 | G140: 8207.7 | H140: 8207.7 | I140: 188 | J140: 65.47788227 | K140: =E140-J140 -> 4.753618627
A141: Краснооктябрьское | B141: 0 | C141: 33354.56 | D141: 16728.4 | E141: 50.1532624 | F141: 16626.16 | G141: 1964.4 | H141: 1964.4 | I141: 44 | J141: 27.12094597 | K141: 23.03231643
A142: Ромашковское | B142: 0 | C142: 51980.32 | D142: 26740.57 | E142: 51.44364252 | F142: 25239.75 | G142: 2568.2 | H142: 2568.2 | I142: 61 | J142: 48.24128311 | K142: 3.202359406
A143: Савинское | B143: 0 | C143: 21361.24 | D143: 690.69 | E143: 3.23337971 | F143: 20670.55 | G143: 1055.4 | H143: 1055.4 | I143: 23 | J143: 4.311172947 | K143: -1.077793237
A144: Эльтонское | B144: 0 | C144: 27599.2 | D144: 5570.56 | E144: 20.18377344 | F144: 22028.64 | G144: 1363.6 | H144: 1363.6 | I144: 30 | J144: 21.60709972 | K144: -1.42332628
A145: город Палласовка | B145: 0 | C145: 1695544.02 | D145: 912857.5 | E145: 53.83861989 | F145: 782686.52 | G145: 86681.09 | H145: 83916.09 | I145: 1803 | J145: 50.84617234 | K145: 2.992447553
A146: Руднянский муниципальный район | B146: 0 | C146: 1124765.04 | D146: 608622.19 | E146: =D146/C146*100 -> 54.1110515 | F146: 516142.85 | G146: 59646.15 | H146: 55589.35 | I146: 1221 | J146: 49.68894966 | K146: =E146-J146 -> 4.422101841
A147: Лопуховское | B147: 0 | C147: 89989.04 | D147: 39184.29 | E147: =D147/C147*100 -> 43.54340262 | F147: 50804.75 | G147: 4446.1 | H147: 4446.1 | I147: 114 | J147: 42.07155301 | K147: =E147-J147 -> 1.471849609
A148: Руднянское | B148: 0 | C148: 1034776 | D148: 569437.9 | E148: 55.03006448 | F148: 465338.1 | G148: 55200.05 | H148: 51143.25 | I148: 1107 | J148: 50.35123669 | K148: 4.678827784
A149: Светлоярский муниципальный район | B149: 0 | C149: 4514423.08 | D149: 2387491.75 | E149: =D149/C149*100 -> 52.8858662 | F149: 2126931.33 | G149: 229072.1 | H149: 223618.8 | I149: 4854 | J149: 50.36641216 | K149: =E149-J149 -> 2.519454047
A150: Большечапурниковское | B150: 0 | C150: 460666.8 | D150: 184975.59 | E150: =D150/C150*100 -> 40.15387912 | F150: 275691.21 | G150: 22760.23 | H150: 22760.23 | I150: 487 | J150: 36.15150618 | K150: =E150-J150 -> 4.002372937
A151: Дубовоовражное | B151: 0 | C151: 177367.12 | D151: 80840.31 | E151: 45.57795718 | F151: 96526.81 | G151: 8939.7 | H151: 8761.7 | I151: 200 | J151: 45.23629859 | K151: 0.3416585893
A152: Наримановское | B152: 0 | C152: 84103.16 | D152: 8754.27 | E152: 10.4089668 | F152: 75348.89 | G152: 4155.3 | H152: 4155.3 | I152: 88 | J152: 9.374360408 | K152: 1.034606389
A153: Приволжское | B153: 0 | C153: 41554.28 | D153: 18131.81 | E153: 43.63403722 | F153: 23422.47 | G153: 2462.07 | H153: 2098.47 | I153: 51 | J153: 44.72890237 | K153: -1.094865158
A154: Привольненское | B154: 0 | C154: 195036.44 | D154: 94006.58 | E154: 48.19949544 | F154: 101029.86 | G154: 9804.3 | H154: 9624.3 | I154: 205 | J154: 42.18988 | K154: 6.009615434
A155: Райгородское | B155: 0 | C155: 214922.52 | D155: 96164.03 | E155: 44.74358015 | F155: 118758.49 | G155: 10789.5 | H155: 10618.7 | I155: 227 | J155: 47.49920413 | K155: -2.755623977
A156: Светлоярское | B156: 0 | C156: 3170480.44 | D156: 1805384.1 | E156: 56.94354954 | F156: 1365096.34 | G156: 161615.17 | H156: 157216.77 | I156: 3404 | J156: 54.69505263 | K156: 2.248496911
A157: Цацинское | B157: 0 | C157: 33857.52 | D157: 20007.29 | E157: 59.09260336 | F157: 13850.23 | G157: 1672.8 | H157: 1672.8 | I157: 36 | J157: 50.24510557 | K157: 8.847497789
A158: Червленовское | B158: 0 | C158: 136434.8 | D158: 79227.77 | E158: 58.07005984 | F158: 57207.03 | G158: 6873.03 | H158: 6710.53 | I158: 156 | J158: 47.86929704 | K158: 10.2007628
A159: Серафимовичский муниципальный район | B159: 0 | C159: 450247.08 | D159: 233302.5 | E159: =D159/C159*100 -> 51.81654926 | F159: 216944.58 | G159: 22245.4 | H159: 22245.4 | I159: 503 | J159: 35.02049414 | K159: =E159-J159 -> 16.79605512
A160: город Серафимович | B160: 0 | C160: 450247.08 | D160: 233302.5 | E160: =D160/C160*100 -> 51.81654926 | F160: 216944.58 | G160: 22245.4 | H160: 22245.4 | I160: 503 | J160: 35.02049414 | K160: =E160-J160 -> 16.79605512
A161: Среднеахтубинский муниципальный район | B161: 0 | C161: 2845852.56 | D161: 1418535.76 | E161: =D161/C161*100 -> 49.84572216 | F161: 1427316.8 | G161: 193127.82 | H161: 150651.9 | I161: 3331 | J161: 42.14272789 | K161: =E161-J161 -> 7.702994261
A162: Ахтубинское | B162: 0 | C162: 16837.68 | D162: 8212.46 | E162: =D162/C162*100 -> 48.7742967 | F162: 8625.22 | G162: 831.9 | H162: 831.9 | I162: 15 | J162: 0 | K162: =E162-J162 -> 48.7742967
A163: Клетское | B163: 0 | C163: 311111.14 | D163: 27064.94 | E163: 8.699444192 | F163: 284046.2 | G163: 5842 | H163: 5842 | I163: 138 | J163: 34.05413329 | K163: -25.35468909
A164: Куйбышевское | B164: 0 | C164: 13973.72 | D164: 3105.83 | E164: 22.22622179 | F164: 10867.89 | G164: 690.4 | H164: 690.4 | I164: 14 | J164: 22.10310974 | K164: 0.1231120513
A165: Рахинское | B165: 0 | C165: 29366.2 | D165: 20585.57 | E165: 70.0995362 | F165: 8780.63 | G165: 1450.9 | H165: 1450.9 | I165: 31 | J165: 69.71302609 | K165: 0.3865101148
A166: Суходольское | B166: 0 | C166: 108915.8 | D166: 42819.33 | E166: 39.31415828 | F166: 66096.47 | G166: 5381.2 | H166: 5381.2 | I166: 110 | J166: 29.24977507 | K166: 10.06438321
A167: Фрунзенское | B167: 0 | C167: 126370.44 | D167: 55019.99 | E167: 43.53865508 | F167: 71350.45 | G167: 6689.1 | H167: 6210.7 | I167: 145 | J167: 33.15544471 | K167: 10.38321037
A168: город Краснослободск | B168: 0 | C168: 966432.16 | D168: 594248.15 | E168: 61.48886333 | F168: 372184.01 | G168: 47858.77 | H168: 47721.17 | I168: 1044 | J168: 55.80303118 | K168: 5.685832146
A169: рабочий поселок Средняя Ахтуба | B169: 0 | C169: 1465714.44 | D169: 667479.49 | E169: 45.53953156 | F169: 798234.95 | G169: 124383.55 | H169: 82523.63 | I169: 1834 | J169: 36.8410316 | K169: 8.698499962
A170: Старополтавский муниципальный район | B170: 0 | C170: 252665.16 | D170: 153040.41 | E170: =D170/C170*100 -> 60.5704443 | F170: 99624.75 | G170: 12483.46 | H170: 12483.46 | I170: 263 | J170: 54.84561465 | K170: =E170-J170 -> 5.724829652
A171: Гмелинское | B171: 0 | C171: 15392.48 | D171: 10020.22 | E171: =D171/C171*100 -> 65.09815182 | F171: 5372.26 | G171: 760.5 | H171: 760.5 | I171: 16 | J171: 60.77114712 | K171: =E171-J171 -> 4.327004702
A172: Старополтавское | B172: 0 | C172: 237272.68 | D172: 143020.19 | E172: 60.27672044 | F172: 94252.49 | G172: 11722.96 | H172: 11722.96 | I172: 247 | J172: 54.46121034 | K172: 5.815510099
A173: Суровикинский муниципальный район | B173: 0 | C173: 1878246.01 | D173: 1199208.9 | E173: =D173/C173*100 -> 63.84727526 | F173: 679037.11 | G173: 92284.56 | H173: 91835.16 | I173: 2018 | J173: 59.84252576 | K173: =E173-J173 -> 4.004749497
A174: Нижнечирское | B174: 0 | C174: 82336.28 | D174: 40838.78 | E174: =D174/C174*100 -> 49.59998193 | F174: 41497.5 | G174: 4068 | H174: 4068 | I174: 99 | J174: 38.66311135 | K174: =E174-J174 -> 10.93687058
A175: город Суровикино | B175: 0 | C175: 1795909.73 | D175: 1158370.12 | E175: 64.50046462 | F175: 637539.61 | G175: 88216.56 | H175: 87767.16 | I175: 1919 | J175: 60.79086011 | K175: 3.709604508
A176: Урюпинский муниципальный район | B176: 0 | C176: 435864.32 | D176: 199586.37 | E176: =D176/C176*100 -> 45.79094017 | F176: 236277.95 | G176: 21695.888 | H176: 21533.088 | I176: 479 | J176: 41.00171821 | K176: =E176-J176 -> 4.789221964
A177: Бубновское | B177: 0 | C177: 65468.84 | D177: 22540 | E177: =D177/C177*100 -> 34.42859229 | F177: 42928.84 | G177: 3234.62 | H177: 3234.62 | I177: 71 | J177: 32.64680407 | K177: =E177-J177 -> 1.781788223
A178: Добринское | B178: 0 | C178: 8770 | D178: 1034.27 | E178: 11.79327252 | F178: 7735.73 | G178: 433.3 | H178: 433.3 | I178: 8 | J178: 15.72436336 | K178: -3.93109084
A179: Дубовское | B179: 0 | C179: 111722.92 | D179: 52874.64 | E179: 47.32658258 | F179: 58848.28 | G179: 5519.9 | H179: 5519.9 | I179: 128 | J179: 41.86448031 | K179: 5.462102275
A180: Дьяконовское | B180: 0 | C180: 90624.16 | D180: 68587.94 | E180: 75.68394565 | F180: 22036.22 | G180: 4477.49 | H180: 4477.49 | I180: 90 | J180: 72.31434384 | K180: 3.369601807
A181: Искринское | B181: 0 | C181: 46410.4 | D181: 1787.18 | E181: 3.85081792 | F181: 44623.22 | G181: 2454.1 | H181: 2291.3 | I181: 56 | J181: 2.884123673 | K181: 0.9666942467
A182: Креповское | B182: 0 | C182: 37147.68 | D182: 8310.55 | E182: 22.37165282 | F182: 28837.13 | G182: 1835.358 | H182: 1835.358 | I182: 40 | J182: 8.270772226 | K182: 14.10088059
A183: Ольшанское | B183: 0 | C183: 30716.24 | D183: 25146.84 | E183: 81.86822345 | F183: 5569.4 | G183: 1517.6 | H183: 1517.6 | I183: 36 | J183: 81.45984014 | K183: 0.4083833177
A184: Хоперопионерское | B184: 0 | C184: 45004.08 | D184: 19304.95 | E184: 42.89599965 | F184: 25699.13 | G184: 2223.52 | H184: 2223.52 | I184: 50 | J184: 31.62859901 | K184: 11.26740064
A185: Фроловский муниципальный район | B185: 0 | C185: 517168.52 | D185: 325366.95 | E185: =D185/C185*100 -> 62.91313903 | F185: 191801.57 | G185: 26212.9 | H185: 25558.5 | I185: 563 | J185: 54.8763976 | K185: =E185-J185 -> 8.03674143
A186: Арчединское | B186: 0 | C186: 43544.44 | D186: 23802.85 | E186: =D186/C186*100 -> 54.66335082 | F186: 19741.59 | G186: 2151.4 | H186: 2151.4 | I186: 47 | J186: 55.22774741 | K186: =E186-J186 -> -0.5643965873
A187: Ветютневское | B187: 0 | C187: 69617.52 | D187: 40651.65 | E187: 58.39284422 | F187: 28965.87 | G187: 3439.6 | H187: 3439.6 | I187: 74 | J187: 48.34633581 | K187: 10.04650841
A188: Дудаченское | B188: 0 | C188: 15242.76 | D188: 7058.7 | E188: 46.30854255 | F188: 8184.06 | G188: 753.1 | H188: 753.1 | I188: 18 | J188: 35.28529829 | K188: 11.02324426
A189: Малодельское | B189: 0 | C189: 7940.16 | D189: 6785.7 | E189: 85.4604945 | F189: 1154.46 | G189: 392.3 | H189: 392.3 | I189: 9 | J189: 68.96116283 | K189: 16.49933167
A190: Пригородное | B190: 0 | C190: 281034.32 | D190: 164488.15 | E190: 58.52955966 | F190: 116546.17 | G190: 14333.4 | H190: 13891.8 | I190: 316 | J190: 49.40888855 | K190: 9.120671118
A191: Шуруповское | B191: 0 | C191: 99789.32 | D191: 82579.9 | E191: 82.75424665 | F191: 17209.42 | G191: 5143.1 | H191: 4930.3 | I191: 99 | J191: 76.44518104 | K191: 6.309065609
A192: Чернышковский муниципальный район | B192: 0 | C192: 189719.72 | D192: 103842.39 | E192: 54.7346317 | F192: 85877.33 | G192: 9373.5 | H192: 9373.5 | I192: 206 | J192: 50.33734737 | K192: 4.397284326
A193: Чернышковское | B193: 0 | C193: 189719.72 | D193: 103842.39 | E193: 54.7346317 | F193: 85877.33 | G193: 9373.5 | H193: 9373.5 | I193: 206 | J193: 50.33734737 | K193: 4.397284326
A194: город Волжский | B194: 0 | C194: 95537568.17 | D194: 51727681.55 | E194: 54.14381226 | F194: 43809886.62 | G194: 5563071.522 | H194: 4882951.411 | I194: 104449 | J194: 47.3543638 | K194: 6.789448465
A195: город Камышин | B195: 0 | C195: 33758917.46 | D195: 21879251.11 | E195: 64.81028646 | F195: 11879666.35 | G195: 1865500.39 | H195: 1706041.59 | I195: 37928 | J195: 57.39803844 | K195: 7.412248014
A196: город Михайловка | B196: 0 | C196: 10655975.42 | D196: 7020235.64 | E196: 65.88074168 | F196: 3635739.78 | G196: 527565.64 | H196: 526227.24 | I196: 11848 | J196: 58.17550717 | K196: 7.705234515
A197: город Урюпинск | B197: 0 | C197: 6192338 | D197: 4794200.41 | E197: 77.42149104 | F197: =C197-D197 -> 1398137.59 | G197: 318226.97 | H197: 305811.31 | I197: 6712 | J197: 73.85375692 | K197: 3.56773412
A198: город Фролово | B198: 0 | C198: 6374919.12 | D198: 4169438.98 | E198: 65.40379417 | F198: 2205480.14 | G198: 318382.36 | H198: 315093.16 | I198: 7008 | J198: 58.63836557 | K198: 6.765428608
A199: город-герой Волгоград | B199: 0 | C199: 293330678 | D199: 136591001.2 | E199: 46.56553557 | F199: 156739676.8 | G199: 14803832.9 | H199: 14491609.52 | I199: 288577 | J199: 38.2136273 | K199: 8.351908267
